Cogmind - Beta 9.3 @@@ ROGUE MODE // 2019.12.23 @ 22:00:04 // Winter2019/RPGLIKE Player: Quizer Result: Escaped! Performance ------------- Evolutions (9) 4500 Regions Visited (29) 5800 Robots Destroyed (593) 2965 Value Destroyed (27153) 27153 Prototype IDs (70) 1400 Alien Tech Used (1) 200 Bonus (25028) 25028 TOTAL SCORE: 67046 Bonus ------- High Alert Combat Kills 9317 Follower Combat Kills 1962 Entered Garrisons 1000 Used RIF Installer 2500 Met Zhirov 300 Built Enhanced Grunts 300 A7 Reached Mainframe 300 Met R17 at Cetus 500 Hacked Protovariant 500 Met R17 at Research 2000 Scanned by Researcher 500 Acquired SGEMP 2000 Delivered SGEMP 2000 Win 3000 Friendly Fire -1151 Cogmind --------- Core Integrity 797/1200 Matter 380/400 Energy 741/750 System Corruption 0% Temperature Cool (4) Movement Flying (11) Location To Epsilon Eridani Parts ------- > --- POWER (1) -------- Improved Quantum Reactor > --- PROPULSION (4) --- Experimental Q-thruster Experimental Q-thruster Experimental Q-thruster Experimental Q-thruster > --- UTILITY (7) ------ Advanced Signal Interpreter Long-range Terrain Scanner Advanced Targeting Computer Improved Weapon Cycler Reaction Control System Medium Regenerative Plating Advanced Shield Generator > --- WEAPON (4) ------- Heavy Gatling Laser Heavy Gatling Laser Heavy Gatling Laser Heavy Gatling Laser > --- INVENTORY (6) ---- Improved Maneuvering Thrusters Improved System Backup Module Transdimensional Reconstructor Enhanced Quantum Rifle Phasing Sabre Peak State ------------ > --- POWER ------------ Improved Quantum Reactor > --- PROPULSION ------- Cooled VTOL Module Cooled Nuclear Pulse Thruster Improved Diametric Drive Improved Diametric Drive > --- UTILITY ---------- Advanced Signal Interpreter Long-range Terrain Scanner Advanced Targeting Computer Improved Weapon Cycler Medium Regenerative Plating Advanced Shield Generator Improved System Backup Module > --- WEAPON ----------- Potential Cannon Improved Potential Cannon > --- INVENTORY -------- Transdimensional Reconstructor Smartbomb Launcher Phasing Sabre SGEMP Prototype [Rating: 125] Favorites ----------- Power Micro Fission Core Engine Light Angular Momentum Engine Power Core Micro Fission Core Reactor Improved Quantum Reactor Propulsion Biomechanical Wings Treads Advanced Medium Treads Leg High-density Centrium Leg Wheel Wheel Hover Unit Hover Unit Flight Unit Biomechanical Wings Utility Advanced Targeting Computer Device Long-range Terrain Scanner Storage High-capacity Matter Pod Processor Advanced Targeting Computer Hackware Advanced Hacking Suite Protection Centrium Medium Armor Plating Weapon Gatling Laser Energy Gun Gatling Laser Energy Cannon Improved Potential Cannon Ballistic Gun Makeshift Shrapnel Gun Ballistic Cannon Gauss Cannon Launcher Smartbomb Launcher Special Weapon Mining Laser Impact Weapon Heavy Mace Slashing Weapon Phasing Sabre Piercing Weapon Kinetic Spear Special Melee Weapon Improved Datajack Build | -11 -10 -10 -9 -9 -8 -8 -7 -7 -7 -7 -6 -6 -6 -6 -6 -6 -5 -5 -5 -5 -4 -4 -4 -4 -3 -3 -3 -2 -1 ------- Run | Scr Mat Min Mat Min Mat Gar Fac Gar Fac Gar Fac Ext Cet Arc Hub Gar Fac Was Fac Gar Fac Upp Upp Zhi Pro Res Tes Res Acc Slots Evolved 12 | 3 1 1 2 . . 1 1 . . 1 . . . . . . 1 . 1 . . . . . . . . . . Power . | . . . . . . . . . . . . . . . . . . . . . . . . . . . . . . Propulsion 3 | 1 . 1 . . . . . . . . . . . . . . . . 1 . . . . . . . . . . Utility 6 | 1 1 . 1 . . 1 1 . . . . . . . . . 1 . . . . . . . . . . . . Weapon 3 | 1 . . 1 . . . . . . 1 . . . . . . . . . . . . . . . . . . . Parts Attached 557 | 8 16 8 37 3 6 1 41 4 7 7 56 8 6 1 . 13 27 7 46 8 63 3 7 10 14 19 85 38 8 Power 17 | 2 1 1 2 . . . 2 . . . 1 . . . . . 2 . . . . . . 2 . 1 1 2 . Engine 5 | 2 1 . 1 . . . . . . . 1 . . . . . . . . . . . . . . . . . . Core 7 | . . 1 1 . . . 2 . . . . . . . . . 2 . . . . . . 1 . . . . . Reactor 5 | . . . . . . . . . . . . . . . . . . . . . . . . 1 . 1 1 2 . Propulsion 87 | 2 2 . 5 . . . 6 . . . 9 3 3 . . 2 4 . 7 . 14 . 2 . 2 4 11 11 . Treads 4 | . . . . . . . . . . . . . 1 . . . . . . . 2 . . . . . . 1 . Leg 4 | . . . . . . . . . . . . . . . . 1 . . . . . . . . . . 2 1 . Wheel 3 | 2 . . . . . . . . . . . . . . . . . . . . 1 . . . . . . . . Hover 12 | . . . 1 . . . . . . . 2 1 . . . . 2 . 1 . 3 . 1 . . . 1 . . Flight 64 | . 2 . 4 . . . 6 . . . 7 2 2 . . 1 2 . 6 . 8 . 1 . 2 4 8 9 . Utility 211 | 2 10 4 13 . 1 1 24 . 4 2 30 . 3 . . 7 15 4 8 . 18 . . 5 5 6 37 12 . Device 146 | 2 5 1 5 . 1 . 17 . 1 1 26 . 1 . . 5 12 4 7 . 13 . . 4 4 5 22 10 . Storage 14 | . 3 3 1 . . 1 . . . . 2 . . . . . . . . . . . . . . . 4 . . Processor 17 | . 1 . 2 . . . 4 . 2 . 1 . . . . . 1 . 1 . 1 . . . . 1 2 1 . Hackware 4 | . . . . . . . . . . . . . . . . 2 . . . . . . . 1 . . 1 . . Protection 30 | . 1 . 5 . . . 3 . 1 1 1 . 2 . . . 2 . . . 4 . . . 1 . 8 1 . Artifact . | . . . . . . . . . . . . . . . . . . . . . . . . . . . . . . Weapon 242 | 2 3 3 17 3 5 . 9 4 3 5 16 5 . 1 . 4 6 3 31 8 31 3 5 3 7 8 36 13 8 Energy Gun 159 | 2 2 2 10 1 3 . 8 2 2 4 10 3 . 1 . 2 3 2 26 6 20 2 3 2 3 4 21 10 5 Energy Cannon 15 | . . . 1 . . . . . . . 1 . . . . 1 1 . 4 . 2 . . . . . 4 1 . Ballistic Gun 6 | . . . 1 . . . . . . . 1 . . . . . . . 1 . 1 . . . 1 1 . . . Ballistic Cannon 7 | . . . . . . . 1 . . . 1 . . . . . . . . 1 2 . . . . 1 1 . . Launcher 20 | . . . 4 2 . . . 2 . 1 . . . . . . . 1 . 1 3 1 1 1 1 . 2 . . Special Weapon 6 | . 1 1 . . 1 . . . . . . . . . . . . . . . . . . . . 1 . 2 . Impact Weapon 4 | . . . . . 1 . . . . . 3 . . . . . . . . . . . . . . . . . . Slashing Weapon 21 | . . . 1 . . . . . . . . 2 . . . . 1 . . . 3 . 1 . 2 . 8 . 3 Piercing Weapon 2 | . . . . . . . . . . . . . . . . 1 1 . . . . . . . . . . . . Special Melee Weapon 2 | . . . . . . . . . 1 . . . . . . . . . . . . . . . . 1 . . . Unidentified Prototypes 48 | . . . 3 . . . 1 . . . 3 . 2 . . 1 3 . 3 . 3 . . 3 . 1 23 2 . Parts Lost . | . . . . . . . . . . . . . . . . . . . . . . . . . . . . . . Power . | . . . . . . . . . . . . . . . . . . . . . . . . . . . . . . Propulsion . | . . . . . . . . . . . . . . . . . . . . . . . . . . . . . . Utility . | . . . . . . . . . . . . . . . . . . . . . . . . . . . . . . Weapon . | . . . . . . . . . . . . . . . . . . . . . . . . . . . . . . Highest Loss Streak . | . . . . . . . . . . . . . . . . . . . . . . . . . . . . . . Average Slot Usage (%) 98 | . 98 91 99 100 100 98 98 100 99 100 99 100 99 100 100 100 99 98 98 99 98 99 99 98 98 99 97 99 100 Engine 2 | . 13 1 . . . . . . . . 5 7 7 7 7 7 . . . . . . . . . . . . . Core 4 | . . 9 10 9 9 8 7 7 7 7 1 . . . . . 5 6 6 6 6 6 6 6 6 3 . . . Flight 23 | . 15 23 29 27 27 26 23 23 23 21 20 21 20 21 21 20 19 20 21 25 24 25 25 25 25 24 23 24 25 Device 18 | . 26 21 11 9 9 8 13 15 15 14 13 14 14 14 14 13 20 19 18 18 24 25 25 25 24 25 24 24 25 Processor 16 | . 1 11 18 18 18 17 22 23 23 21 21 21 21 21 21 21 20 20 19 18 12 12 12 12 12 12 12 12 12 Protection 5 | . . . 5 9 9 8 7 7 7 7 7 7 7 7 7 7 5 6 6 6 5 6 6 6 6 6 5 6 6 Energy Gun 24 | . 27 22 22 24 27 26 23 22 22 26 27 28 28 28 28 28 25 24 24 23 23 23 23 23 22 25 22 24 23 Naked Turns . | . . . . . . . . . . . . . . . . . . . . . . . . . . . . . . Heaviest Build 57 | 11 12 18 24 24 24 24 25 22 22 30 37 35 35 36 36 36 41 37 40 39 38 38 38 50 41 49 57 56 56 Greatest Support 65 | 20 25 18 34 34 34 34 39 39 39 39 41 41 41 41 41 41 41 41 58 54 54 54 54 54 54 65 62 62 62 Greatest Overweight (x) 1 | . 1 . . . . . . . . . 1 1 1 . . 1 1 . 1 . 1 . . . . . 1 1 . Average Overweight (x) . | . . . . . . . . . . . . . . . . . . . . . . . . . . . . . . Largest Inventory Capacity 6 | . 2 2 3 3 3 3 4 4 4 4 4 4 4 5 5 5 5 5 5 5 5 5 5 5 6 6 6 6 6 Average Capacity 4 | . 1 2 2 3 3 3 3 4 4 4 4 4 4 4 5 5 5 5 5 5 5 5 5 5 5 6 6 6 6 Most Carried 6 | . 1 2 3 3 3 2 4 4 4 4 4 4 4 5 5 5 5 5 5 5 5 5 5 5 6 6 6 6 5 Average Carried 4 | . . 1 2 3 2 2 3 4 4 3 3 3 4 4 4 4 4 4 4 4 4 4 4 4 5 6 5 5 4 Final Capacity 6 | . 2 2 3 3 3 3 4 4 4 4 4 4 4 5 5 5 5 5 5 5 5 5 5 5 6 6 6 6 6 Final Carried 6 | . 1 2 3 3 2 2 4 4 4 4 3 4 4 5 5 5 5 5 5 5 4 5 5 5 6 6 5 6 5 Class Distribution -------------------- 78% | Hacker-Scout 8% | Scavenger-Mutant 7% | Scavenger-Scout 4% | Mutant Dominant Class ---------------- Mutant | -10/Materials Scavenger-Mutant | -10/Mines Scavenger-Scout | -9/Materials Scavenger-Scout | -9/Mines Hacker-Scout | -8/Materials Hacker-Scout | -8/Garrison Hacker-Scout | -7/Factory Hacker-Scout | -7/Garrison Hacker-Scout | -7/Factory Hacker-Scout | -7/Garrison Hacker-Scout | -6/Factory Hacker-Scout | -6/Extension Hacker-Scout | -6/Cetus Hacker-Scout | -6/Archives Hacker-Scout | -6/Hub_04(d) Hacker-Scout | -6/Garrison Hacker-Scout | -5/Factory Hacker-Scout | -5/Waste Hacker-Scout | -5/Factory Hacker-Scout | -5/Garrison Hacker-Scout | -4/Factory Hacker-Scout | -4/Upper Caves Hacker-Scout | -4/Upper Caves Hacker-Scout | -4/Zhirov Hacker-Scout | -3/Proximity Caves Hacker-Scout | -3/Research Hacker-Scout | -3/Testing Hacker-Scout | -2/Research Hacker-Scout | -1/Access Resources | -11 -10 -10 -9 -9 -8 -8 -7 -7 -7 -7 -6 -6 -6 -6 -6 -6 -5 -5 -5 -5 -4 -4 -4 -4 -3 -3 -3 -2 -1 ----------- Run | Scr Mat Min Mat Min Mat Gar Fac Gar Fac Gar Fac Ext Cet Arc Hub Gar Fac Was Fac Gar Fac Upp Upp Zhi Pro Res Tes Res Acc Matter Collected 6294 | 270 170 60 410 70 60 . 520 80 30 110 561 30 110 10 . 130 223 77 487 86 823 97 29 . 371 100 847 473 60 Remotely . | . . . . . . . . . . . . . . . . . . . . . . . . . . . . . . Salvage Created 25456 | 105 528 346 1127 425 217 285 1888 306 79 1338 2532 1905 446 208 272 332 643 1170 797 814 2393 480 33 . 469 525 2326 3170 297 Parts 887 | 7 37 16 95 23 8 6 67 17 3 25 80 74 18 7 8 28 45 6 34 31 64 12 5 . 23 15 54 73 6 Haulers Intercepted 13 | . 1 . 3 . . . . . . . 3 . . . 1 . . . 2 . . . . . . . 1 2 . Recyclers Shooed 9 | . 2 1 . . . . . . . . . 1 . . 1 . . . . . 1 . . . . . . 2 1 Parts Field Recycled . | . . . . . . . . . . . . . . . . . . . . . . . . . . . . . . Retrieved Matter . | . . . . . . . . . . . . . . . . . . . . . . . . . . . . . . Parts Self-Destructed 34 | . . . . . . . . . . . . . . . . . . . . . . 13 2 . 19 . . . . Prevented . | . . . . . . . . . . . . . . . . . . . . . . . . . . . . . . Kills | -11 -10 -10 -9 -9 -8 -8 -7 -7 -7 -7 -6 -6 -6 -6 -6 -6 -5 -5 -5 -5 -4 -4 -4 -4 -3 -3 -3 -2 -1 ------- Run | Scr Mat Min Mat Min Mat Gar Fac Gar Fac Gar Fac Ext Cet Arc Hub Gar Fac Was Fac Gar Fac Upp Upp Zhi Pro Res Tes Res Acc Combat Hostiles Destroyed 460 | 1 11 4 34 14 4 5 29 13 1 20 33 39 11 3 4 13 16 6 4 24 40 13 5 . 20 9 35 43 6 Melee 1 | . . . . . . . . . . . . . . . . . . . . . 1 . . . . . . . . Guns 341 | 1 10 4 32 8 4 5 28 6 1 17 28 36 5 3 3 12 11 3 4 20 18 6 2 . 12 3 22 32 5 AOE 48 | . . . 2 6 . . . 6 . . . . . . . . 5 . . 2 11 6 3 . 7 . . . . Classes Destroyed 27 | 3 5 1 2 1 2 . 1 . . . 1 3 . . . . . 1 . . 1 . . . 1 . 3 2 . Worker 24 | 1 1 2 1 . . . 3 . . . 3 . . . . . 1 . 5 . 4 . . . . . . 2 1 Builder 9 | . 1 . . 1 . . 1 . . . 2 . . . . . . . . . 2 . . . . . 1 1 . Tunneler 4 | 1 . 2 . . . . . . . . 1 . . . . . . . . . . . . . . . . . . Hauler 13 | . 1 . 3 . . . . . . . 3 . . . 1 . . . 2 . . . . . . . 1 2 . Recycler 25 | . 2 . 1 2 . . 2 . . . 7 2 . . . . 1 . 1 . 6 . . . . . 1 . . Carrier 1 | . . . . . . . . . . . . . . . . . . . . . . . . . . . . 1 . Operator 12 | . . . . . 1 . 3 . . . 1 2 . . . . 1 . . . 1 . . . . 1 2 . . Drone 5 | . . . . . . . . . . . . . . . . . . . . . . . . . 1 . . 4 . Watcher 40 | . 3 . 5 . . . 5 . . . 5 2 . . . 1 3 . 3 . 5 . . . . . 3 4 1 Swarmer 98 | . 3 . 7 7 . . 4 7 . 4 6 4 . . . 7 7 . . 8 14 2 4 . 7 . . 3 4 Saboteur 1 | . . . . . . . . . . . . . . . . . . . . . 1 . . . . . . . . Grunt 191 | 1 8 3 15 5 2 5 14 6 . 12 21 19 3 . 1 2 4 . 1 9 4 6 . . 12 3 18 17 . Brawler 9 | . . . 1 . . . 1 . . . . . . . . . . . . . 1 1 . . . . 1 4 . Duelist 15 | . . . 1 . . . . . . 1 1 1 . . . . . . . . 6 2 . . 1 . 1 1 . Protector 6 | . . . . . . . . . . . 1 2 . . . . 1 . . . . . . . . . . 2 . Sentry 65 | . . 1 10 . 1 . 7 . 1 1 2 8 . 3 1 1 4 . 2 5 6 2 . . . 3 3 4 . Demolisher 2 | . . . . . . . . . . . . 2 . . . . . . . . . . . . . . . . . Specialist 8 | . . . . . . . . . . . . 3 . . . 2 . . . . . . . . . . 3 . . Hunter 16 | . . . . . 1 . . . . 2 1 . 2 . . . . . 1 1 . . . . . 2 2 4 . Programmer 18 | . . . . . . . 3 . . . 1 . . . 1 1 . . . . 6 . . . . . 4 2 . Q-Series 1 | . . . . . . . . . . . . . . . . . . . . . . . . . . . . 1 . Behemoth 11 | . . . . . . . . . . . . 2 . . 1 . . . . 1 2 . 1 . . 1 . 1 2 Compactor 6 | . . . . . . . . . . . . . . . . . . 6 . . . . . . . . . . . Cetus Guard 6 | . . . . . . . . . . . . . 6 . . . . . . . . . . . . . . . . Investigator 1 | . . . . . . . . . . . . . . . . . . . . . . . . . . . 1 . . Striker 2 | . . . . . . . . . . . . . . . . . . . . . . . . . . . 2 . . Alpha 7 1 | . . . . . . . . . . . . . . . . . . . . . . . . . . . 1 . . Assembled 2 | . . . . 2 . . . . . . . . . . . . . . . . . . . . . . . . . Thug 1 | . . . . . . . . . . . . . . . . . . . 1 . . . . . . . . . . Best Kill Streak 15 | 1 3 3 6 8 2 3 6 7 1 6 12 12 8 3 3 7 6 5 6 13 11 13 4 . 9 3 9 15 4 Combat Bots Only 15 | 1 2 2 6 7 2 3 5 7 1 6 6 12 8 3 2 6 5 5 1 13 7 14 4 . 9 3 8 15 4 Max Kills in Single Turn 6 | 1 2 1 2 4 1 2 2 3 1 1 2 2 2 1 1 1 6 1 4 2 3 4 2 . 3 1 1 2 2 Gunslinging 1 | . . . 1 1 . 1 . . . . . 1 1 . . . . . . 1 . . . . 1 . . . 1 Exploded 5 | . . . 1 3 . . . 3 . . . . . . . . 5 . . 2 3 4 2 . 3 . . . . Melee 1 | . . . . . . . . . . . . . . . . . . . . . 1 . . . . . . . . Uniques/NPCs Destroyed . | . . . . . . . . . . . . . . . . . . . . . . . . . . . . . . Combat | -11 -10 -10 -9 -9 -8 -8 -7 -7 -7 -7 -6 -6 -6 -6 -6 -6 -5 -5 -5 -5 -4 -4 -4 -4 -3 -3 -3 -2 -1 -------- Run | Scr Mat Min Mat Min Mat Gar Fac Gar Fac Gar Fac Ext Cet Arc Hub Gar Fac Was Fac Gar Fac Upp Upp Zhi Pro Res Tes Res Acc Damage Taken 12654 | 33 455 151 753 328 142 164 1272 207 83 280 1100 943 532 106 172 99 257 . 250 333 1375 151 81 . 215 426 943 1152 651 Core 10163 | 25 374 126 617 266 110 131 1027 163 65 219 861 757 436 93 137 83 205 . 195 259 1099 121 71 . 174 354 760 906 529 Absorbed by Shields 2405 | . . . . . . . . . . 82 . 53 346 . . . 97 . 89 163 342 . . . 80 153 348 418 234 Redirected to Core 8540 | 25 273 87 426 210 110 104 847 133 65 181 793 646 354 48 123 59 177 . 195 245 985 101 32 . 147 261 642 855 416 Core Remaining (%) 93 | 95 . 100 . 76 . 97 . . . 100 . . . . . 100 . . . 100 . . . . 100 . 100 98 66 Volleys Fired 1097 | 8 68 26 148 17 11 14 90 19 2 49 79 61 23 5 16 23 24 22 23 35 86 11 10 . 26 20 75 86 20 Largest 4 | 2 2 2 3 3 3 3 3 3 3 4 4 4 4 4 4 4 4 4 4 4 4 4 4 . 4 4 4 4 4 Hottest 400 | 100 115 140 187 187 187 187 211 205 205 261 315 315 315 315 321 321 321 321 324 321 340 340 340 . 340 340 340 400 400 Shots Fired 3519 | 16 136 51 306 41 33 32 264 46 6 168 316 242 92 20 64 83 96 71 90 132 295 35 24 . 81 80 278 341 80 Gun 3486 | 16 136 51 302 37 33 32 264 42 6 168 316 242 92 20 64 83 96 71 90 131 283 32 22 . 78 80 278 341 80 Cannon . | . . . . . . . . . . . . . . . . . . . . . . . . . . . . . . Launcher 33 | . . . 4 4 . . . 4 . . . . . . . . . . . 1 12 3 2 . 3 . . . . Special . | . . . . . . . . . . . . . . . . . . . . . . . . . . . . . . Kinetic . | . . . . . . . . . . . . . . . . . . . . . . . . . . . . . . Thermal 3482 | 16 136 51 302 37 33 32 264 42 6 168 316 242 92 20 64 83 96 71 86 131 283 32 22 . 78 80 278 341 80 Explosive 33 | . . . 4 4 . . . 4 . . . . . . . . . . . 1 12 3 2 . 3 . . . . Electromagnetic 4 | . . . . . . . . . . . . . . . . . . . 4 . . . . . . . . . . Robot Hit Streak 82 | 4 19 12 21 13 22 19 33 24 31 53 60 52 44 47 57 34 30 48 29 82 38 64 28 . 34 36 69 40 25 Robot Miss Streak 12 | 4 4 2 2 6 1 1 2 1 . 2 3 10 1 1 3 4 2 2 2 3 3 1 1 . 2 4 12 4 2 Penetration Max . | . . . . . . . . . . . . . . . . . . . . . . . . . . . . . . Secondary Targets 35 | . . . 3 2 . 2 1 2 . 3 . 7 1 . . 1 1 1 . 3 1 . . . 1 1 1 3 1 Max Gunslinging Chain 1 | . . . 1 1 . 1 1 1 . 1 . 1 1 . . 1 1 1 . 1 1 . . . 1 1 1 1 1 Shots Hit Robots 2827 | 10 77 32 143 24 23 23 188 37 5 139 257 218 91 19 53 62 78 66 62 117 255 29 16 . 79 74 254 322 74 Core Hits 1786 | 4 31 14 66 24 9 10 98 23 3 74 168 149 55 11 24 29 58 22 40 77 169 38 14 . 66 41 182 242 45 Critical Hits . | . . . . . . . . . . . . . . . . . . . . . . . . . . . . . . Critical Kills . | . . . . . . . . . . . . . . . . . . . . . . . . . . . . . . Critical Parts Destroyed . | . . . . . . . . . . . . . . . . . . . . . . . . . . . . . . Melee Attacks 42 | . . . . . . . . . . . 9 1 . . . . 2 . . . . . 3 . 1 . 8 . 18 Impact 9 | . . . . . . . . . . . 9 . . . . . . . . . . . . . . . . . . Slashing 33 | . . . . . . . . . . . . 1 . . . . 2 . . . . . 3 . 1 . 8 . 18 Piercing . | . . . . . . . . . . . . . . . . . . . . . . . . . . . . . . Sneak Attacks . | . . . . . . . . . . . . . . . . . . . . . . . . . . . . . . Combat Hostiles . | . . . . . . . . . . . . . . . . . . . . . . . . . . . . . . Follow-up Attacks . | . . . . . . . . . . . . . . . . . . . . . . . . . . . . . . Damage Inflicted 75191 | 127 956 466 2687 853 444 442 4337 1128 117 3244 6050 4837 2437 405 1398 1014 1881 2214 1976 3335 9089 2227 923 . 2708 1966 6972 8358 2600 Guns 66007 | 127 956 466 2333 372 444 442 4080 686 117 3244 5645 4837 2437 405 1398 1014 1062 2214 1492 2964 6177 875 546 . 1778 1966 6972 8358 2600 Cannons . | . . . . . . . . . . . . . . . . . . . . . . . . . . . . . . Explosions 9169 | . . . 354 481 . . 257 442 . . 405 . . . . . 819 . 469 371 2912 1352 377 . 930 . . . . Melee . | . . . . . . . . . . . . . . . . . . . . . . . . . . . . . . Ramming 15 | . . . . . . . . . . . . . . . . . . . 15 . . . . . . . . . . Kinetic . | . . . . . . . . . . . . . . . . . . . . . . . . . . . . . . Thermal 67078 | 127 956 466 2370 457 444 442 4260 686 117 3244 5645 4837 2437 405 1398 1014 1062 2214 1920 2964 6518 875 546 . 1778 1966 6972 8358 2600 Explosive 7747 | . . . 292 396 . . 77 442 . . 120 . . . . . 819 . . 371 2571 1352 377 . 930 . . . . Electromagnetic 351 | . . . 25 . . . . . . . 285 . . . . . . . 41 . . . . . . . . . . Impact . | . . . . . . . . . . . . . . . . . . . . . . . . . . . . . . Slashing . | . . . . . . . . . . . . . . . . . . . . . . . . . . . . . . Piercing . | . . . . . . . . . . . . . . . . . . . . . . . . . . . . . . Highest Corruption 2 | . . . 1 1 . . 2 1 1 1 1 . . . . . . . . . 1 1 . . . . 1 . . Average Corruption 1 | . . . 1 1 . . 1 1 1 1 1 . . . . . . . . . 1 1 . . . . 1 . . Corruption Purged 7 | . . . . . . . 2 . . 1 2 . . . . . . . . . . 1 . . . . 1 . . Effects 16 | . . . 2 . . . 1 . 1 1 2 . . . . . . . . . 7 1 . . . . 1 . . Message Errors 5 | . . . . . . . 1 . . . . . . . . . . . . . 4 . . . . . . . . Energy Discharges 2 | . . . 1 . . . . . . . 1 . . . . . . . . . . . . . . . . . . Data Loss (minor) 1 | . . . . . . . . . . . 1 . . . . . . . . . . . . . . . . . . Targeting Errors 6 | . . . 1 . . . . . 1 1 . . . . . . . . . . 2 1 . . . . . . . Weapon Failures 2 | . . . . . . . . . . . . . . . . . . . . . 1 . . . . . 1 . . Overload Shots . | . . . . . . . . . . . . . . . . . . . . . . . . . . . . . . Overflow Damage 453 | . . . 40 7 . . 68 5 . . . . . . . . . . 24 34 224 2 11 . 38 . . . . Projectiles . | . . . . . . . . . . . . . . . . . . . . . . . . . . . . . . Explosions 453 | . . . 40 7 . . 68 5 . . . . . . . . . . 24 34 224 2 11 . 38 . . . . Melee . | . . . . . . . . . . . . . . . . . . . . . . . . . . . . . . Knockbacks . | . . . . . . . . . . . . . . . . . . . . . . . . . . . . . . Impact . | . . . . . . . . . . . . . . . . . . . . . . . . . . . . . . Kinetic . | . . . . . . . . . . . . . . . . . . . . . . . . . . . . . . Secondary . | . . . . . . . . . . . . . . . . . . . . . . . . . . . . . . Self-Inflicted Damage 543 | . . . . . . . 108 25 . . 36 . . . . . 92 . 115 . 155 12 . . . . . . . Shots 11 | . . . . . . . 1 1 . . 2 . . . . . 2 . 1 . 3 1 . . . . . . . Rammed 1 | . . . . . . . . . . . . . . . . . . . 1 . . . . . . . . . . Targets Rammed 1 | . . . . . . . . . . . . . . . . . . . 1 . . . . . . . . . . Kicked . | . . . . . . . . . . . . . . . . . . . . . . . . . . . . . . Crushed . | . . . . . . . . . . . . . . . . . . . . . . . . . . . . . . Highest Temperature 395 | 156 135 47 321 72 114 141 309 234 126 315 120 159 96 84 147 135 153 267 284 181 60 153 148 . 162 235 328 274 395 Average Temperature 67 | 72 38 19 77 29 37 63 81 98 67 101 45 42 42 41 52 55 54 106 66 39 40 68 69 . 69 79 66 61 165 Received Heat Transfer 2874 | 18 243 90 249 70 36 117 417 63 18 84 354 294 57 33 66 . 30 . 36 74 75 72 . . 39 69 102 168 . Effects 4 | . . . 1 . . . . . . . . . . . . . . 1 . . . . . . . . . . 2 Shutdowns 1 | . . . 1 . . . . . . . . . . . . . . . . . . . . . . . . . . Energy Bleed 2 | . . . . . . . . . . . . . . . . . . . . . . . . . . . . . 2 Interference 1 | . . . . . . . . . . . . . . . . . . 1 . . . . . . . . . . . Siege Activations . | . . . . . . . . . . . . . . . . . . . . . . . . . . . . . . Robots Corrupted . | . . . . . . . . . . . . . . . . . . . . . . . . . . . . . . Combat Hostiles . | . . . . . . . . . . . . . . . . . . . . . . . . . . . . . . Parts Fried 2 | . . . . . . . . . . . 1 . 1 . . . . . . . . . . . . . . . . Impact Corruptions . | . . . . . . . . . . . . . . . . . . . . . . . . . . . . . . Robots Melted 76 | . 1 . . . . . 1 1 . 7 5 3 6 . 2 1 . 3 . 2 10 1 . . 1 6 14 11 1 Combat Hostiles 70 | . 1 . . . . . 1 1 . 3 5 3 6 . 1 1 . 3 . 2 10 1 . . 1 6 13 11 1 Parts Melted 328 | 1 7 4 14 . 2 1 23 3 . 18 35 24 11 2 6 6 7 9 4 18 35 4 . . 9 9 42 31 3 Heat Transferred 119439 | 370 2775 1184 5193 964 851 851 7369 1327 223 6166 10501 8996 4700 775 2508 1754 1961 3915 2844 4890 10982 1550 975 . 3150 3550 12550 13932 2633 Parts Sabotaged 7 | . . . . . . . . . . . . . . . . . . . . . 4 . . . . . . 3 . Parts Stolen . | . . . . . . . . . . . . . . . . . . . . . . . . . . . . . . Parts Stripped . | . . . . . . . . . . . . . . . . . . . . . . . . . . . . . . Power Chain Reactions . | . . . . . . . . . . . . . . . . . . . . . . . . . . . . . . Missiles Intercepted . | . . . . . . . . . . . . . . . . . . . . . . . . . . . . . . Alert | -11 -10 -10 -9 -9 -8 -8 -7 -7 -7 -7 -6 -6 -6 -6 -6 -6 -5 -5 -5 -5 -4 -4 -4 -4 -3 -3 -3 -2 -1 ------- Run | Scr Mat Min Mat Min Mat Gar Fac Gar Fac Gar Fac Ext Cet Arc Hub Gar Fac Was Fac Gar Fac Upp Upp Zhi Pro Res Tes Res Acc Peak Influence 1848 | 30 273 212 558 504 373 442 964 935 553 867 1424 1638 1180 581 723 1561 1783 541 939 1258 1559 . . . . 602 728 1848 1175 Average Influence 650 | 10 149 154 309 332 262 294 600 788 525 649 769 961 892 549 382 1066 1160 531 469 954 1022 . . . . 443 539 975 988 Maximum Alert Level 5 | . 1 1 2 2 1 2 3 3 2 3 4 5 4 2 3 4 5 2 3 4 4 . . . . 2 3 5 4 Low Security (%) 10 | 100 76 70 27 19 5 . . . . . . . . . 21 . . . . . . . . . . . . . . Level 1 18 | . 23 29 41 53 94 91 22 . . 10 . . . 7 41 . . . 38 . 2 . . . . 37 23 9 . Level 2 30 | . . . 31 27 . 8 45 40 100 43 46 3 . 92 13 32 . 100 50 3 22 . . . . 62 62 21 . Level 3 27 | . . . . . . . 32 60 . 46 49 72 89 . 24 8 43 . 10 61 28 . . . . . 13 37 58 Level 4 11 | . . . . . . . . . . . 4 18 10 . . 58 50 . . 34 46 . . . . . . 16 41 Level 5 1 | . . . . . . . . . . . . 4 . . . . 5 . . . . . . . . . . 15 . High Security . | . . . . . . . . . . . . . . . . . . . . . . . . . . . . . . Max Security . | . . . . . . . . . . . . . . . . . . . . . . . . . . . . . . Squads Dispatched 52 | . 1 . 2 . 3 . 2 . . . 5 9 . . 2 . 2 . 3 . 8 . . . . 2 4 6 3 Investigation 6 | . . . 1 . 1 . . . . . 1 1 . . . . 1 . . . 1 . . . . . . . . Extermination 6 | . . . . . . . 1 . . . 1 . . . . . . . . . 1 . . . . . 2 1 . Reinforcement 19 | . 1 . 1 . 1 . . . . . 2 3 . . 1 . . . 2 . 2 . . . . 2 1 1 2 Assault 15 | . . . . . . . 1 . . . 1 5 . . . . 1 . . . 3 . . . . . 1 3 . Garrison 6 | . . . . . 1 . . . . . . . . . 1 . . . 1 . 1 . . . . . . 1 1 Intercept . | . . . . . . . . . . . . . . . . . . . . . . . . . . . . . . Construction Impeded 7 | . . . 1 . . . . . . . 1 . . . 1 . . . . . 1 . . . . . . 1 2 Haulers Reinforced 2 | . . . . . . . . . . . . . . . . . . . 1 . . . . . . 1 . . . Stealth | -11 -10 -10 -9 -9 -8 -8 -7 -7 -7 -7 -6 -6 -6 -6 -6 -6 -5 -5 -5 -5 -4 -4 -4 -4 -3 -3 -3 -2 -1 --------- Run | Scr Mat Min Mat Min Mat Gar Fac Gar Fac Gar Fac Ext Cet Arc Hub Gar Fac Was Fac Gar Fac Upp Upp Zhi Pro Res Tes Res Acc Distress Signals 16 | . 2 . . . . . 1 . . . 1 1 2 . . . . . . . 1 . . . . 2 4 1 1 Communications Jammed . | . . . . . . . . . . . . . . . . . . . . . . . . . . . . . . Distress Signals . | . . . . . . . . . . . . . . . . . . . . . . . . . . . . . . Times Spotted 630 | 1 18 7 39 43 5 5 43 13 1 20 46 75 16 4 10 20 29 6 10 25 50 7 2 . 19 10 40 54 12 Peak Tracking Total 21 | 1 4 2 6 20 2 3 6 5 1 5 5 21 5 2 3 7 5 3 5 7 6 4 2 . 7 3 7 10 7 Tactical Retreats 38 | . 1 2 2 3 . . 3 . . . 3 6 1 . . 2 1 . 2 3 2 . . . 2 . . 2 3 Traps | -11 -10 -10 -9 -9 -8 -8 -7 -7 -7 -7 -6 -6 -6 -6 -6 -6 -5 -5 -5 -5 -4 -4 -4 -4 -3 -3 -3 -2 -1 ------- Run | Scr Mat Min Mat Min Mat Gar Fac Gar Fac Gar Fac Ext Cet Arc Hub Gar Fac Was Fac Gar Fac Upp Upp Zhi Pro Res Tes Res Acc Traps Triggered 33 | . . . 1 . . 5 4 . 1 1 1 4 . . . . 1 . 3 6 2 . . . . 1 2 1 . Indirectly . | . . . . . . . . . . . . . . . . . . . . . . . . . . . . . . Trap Hack Attempts . | . . . . . . . . . . . . . . . . . . . . . . . . . . . . . . Triggered . | . . . . . . . . . . . . . . . . . . . . . . . . . . . . . . Disarmed . | . . . . . . . . . . . . . . . . . . . . . . . . . . . . . . Reprogrammed 11 | . . . . . . . . . . . . . . . . . . . . . 11 . . . . . . . . Reused . | . . . . . . . . . . . . . . . . . . . . . . . . . . . . . . Traps Extracted . | . . . . . . . . . . . . . . . . . . . . . . . . . . . . . . Installed . | . . . . . . . . . . . . . . . . . . . . . . . . . . . . . . Triggered . | . . . . . . . . . . . . . . . . . . . . . . . . . . . . . . Machines | -11 -10 -10 -9 -9 -8 -8 -7 -7 -7 -7 -6 -6 -6 -6 -6 -6 -5 -5 -5 -5 -4 -4 -4 -4 -3 -3 -3 -2 -1 ---------- Run | Scr Mat Min Mat Min Mat Gar Fac Gar Fac Gar Fac Ext Cet Arc Hub Gar Fac Was Fac Gar Fac Upp Upp Zhi Pro Res Tes Res Acc Machines Disabled 109 | . 6 1 17 2 . . 12 . . . 13 4 . 1 2 4 15 . 3 1 18 2 . . . . 6 . 2 Max in Single Turn 12 | . 2 1 3 2 . . 4 . . . 3 1 . 1 1 1 12 . 2 1 8 1 . . . . 1 . 1 Garrison Access 9 | . . . . . . . . . . . 2 . . . . . 1 . . . 2 . . . . . 1 1 2 Garrison Relay 1 | . . . . . . . . . . . . . . . . 1 . . . . . . . . . . . . . Machines Sabotaged . | . . . . . . . . . . . . . . . . . . . . . . . . . . . . . . Garrisons Compromised . | . . . . . . . . . . . . . . . . . . . . . . . . . . . . . . Overloaded Fab Kills . | . . . . . . . . . . . . . . . . . . . . . . . . . . . . . . Fab Network Shutdowns 3 | . . . . . . . . . . . 1 . . . . . . . 1 . . . . . . . . 1 . Hacking | -11 -10 -10 -9 -9 -8 -8 -7 -7 -7 -7 -6 -6 -6 -6 -6 -6 -5 -5 -5 -5 -4 -4 -4 -4 -3 -3 -3 -2 -1 --------- Run | Scr Mat Min Mat Min Mat Gar Fac Gar Fac Gar Fac Ext Cet Arc Hub Gar Fac Was Fac Gar Fac Upp Upp Zhi Pro Res Tes Res Acc Machines Accessed 133 | . 8 . 12 . 3 . 9 . 2 . 13 13 4 1 4 . 9 . 5 . 13 . . 9 1 2 15 3 7 Terminals 90 | . 7 . 11 . 2 . 5 . 1 . 6 13 4 . 3 . 7 . 2 . 9 . . . 1 2 11 1 5 Fabricators 8 | . . . . . . . . . . . 1 . . . . . 1 . 1 . 2 . . . . . 2 1 . Repair Stations 2 | . . . . . . . . . . . 1 . . . . . . . 1 . . . . . . . . . . Recycling Units 3 | . 1 . . . . . . . . . 2 . . . . . . . . . . . . . . . . . . Scanalyzers 6 | . . . 1 . . . 3 . . . 1 . . . . . . . . . . . . . . . 1 . . Garrison Access 14 | . . . . . 1 . 1 . 1 . 2 . . . 1 . 1 . 1 . 2 . . . . . 1 1 2 Total Hacks 528 | . 25 . 60 . 12 . 30 . 6 . 36 43 25 25 15 . 35 . 18 . 53 . . 48 3 9 49 9 27 Successful 367 | . 15 . 41 . 9 . 20 . 3 . 28 26 14 25 9 . 19 . 13 . 33 . . 48 3 6 32 8 15 Failed 160 | . 10 . 19 . 2 . 10 . 3 . 8 17 11 . 6 . 16 . 5 . 20 . . . . 3 17 1 12 Catastrophic 17 | . . . 3 . . . 2 . . . 2 5 2 . . . 1 . 1 . 1 . . . . . . . . Database Lockouts 1 | . . . . . 1 . . . . . . . . . . . . . . . . . . . . . . . . Manual 193 | . 9 . 25 . 1 . 10 . 1 . 11 26 15 . 6 . 19 . 6 . 21 . . . . 2 19 3 19 Terminals 378 | . 23 . 58 . 10 . 17 . 5 . 20 43 25 . 14 . 31 . 11 . 46 . . . 3 9 34 4 25 Fabricators 25 | . . . . . . . . . . . 2 . . . . . 3 . 3 . 5 . . . . . 8 4 . Repair Stations 5 | . . . . . . . . . . . 2 . . . . . . . 3 . . . . . . . . . . Recycling Units 8 | . 2 . . . . . . . . . 6 . . . . . . . . . . . . . . . . . . Scanalyzers 24 | . . . 2 . . . 12 . . . 4 . . . . . . . . . . . . . . . 6 . . Garrison Access 15 | . . . . . 2 . 1 . 1 . 2 . . . 1 . 1 . 1 . 2 . . . . . 1 1 2 Terminal Hacks 227 | . 9 . 32 . 6 . 7 . 1 . 10 15 8 25 5 . 12 . 4 . 21 . . 48 3 4 10 1 6 Record 99 | . 1 . 7 . 2 . . . 1 . 3 1 4 25 1 . 7 . . . 5 . . 36 3 . 1 . 2 Part Schematic 11 | . . . 2 . . . . . . . . . . . . . . . . . 2 . . 4 . 1 2 . . Robot Schematic 1 | . . . . . . . 1 . . . . . . . . . . . . . . . . . . . . . . Robot Analysis 12 | . . . 1 . . . . . . . . . . . . . 1 . 1 . 2 . . 4 . 2 1 . . Prototype ID Bank 11 | . . . 4 . . . . . . . . . . . 1 . . . 1 . . . . 4 . . 1 . . Open Door 12 | . . . . . . . . . . . 1 9 1 . . . . . . . . . . . . . 1 . . Branch Access Points 1 | . . . . . . . . . . . 1 . . . . . . . . . . . . . . . . . . Emergency Access Points 2 | . . . 1 . . . . . . . . . . . . . 1 . . . . . . . . . . . . Machine Index 1 | . . . . . . . . . . . . . . . . . . . . . . . . . . . . 1 . Terminal Index 2 | . . . 1 . . . . . . . 1 . . . . . . . . . . . . . . . . . . Alert Level 12 | . 3 . 6 . 1 . 2 . . . . . . . . . . . . . . . . . . . . . . Unreport Threat 32 | . 1 . 5 . . . 2 . . . 2 5 3 . 1 . 3 . . . 4 . . . . . 3 . 3 Locate Traps 11 | . 1 . 3 . 1 . . . . . . . . . 1 . . . 1 . 3 . . . . . . . 1 Reprogram Traps 3 | . . . . . . . . . . . . . . . . . . . . . 3 . . . . . . . . Dispatch Records 1 | . 1 . . . . . . . . . . . . . . . . . . . . . . . . . . . . Security Status 1 | . . . . . 1 . . . . . . . . . . . . . . . . . . . . . . . . Recall Reinforcements 1 | . . . . . . . . . . . . . . . . . . . . . 1 . . . . . . . . Hauler Manifests 2 | . 1 . . . . . . . . . . . . . . . . . . . 1 . . . . . . . . Zone Layout 11 | . 1 . 2 . 1 . 2 . . . 2 . . . 1 . . . 1 . . . . . . 1 . . . Protovariant Controls 1 | . . . . . . . . . . . . . . . . . . . . . . . . . . . 1 . . Fabricator Hacks 16 | . . . . . . . . . . . 2 . . . . . 2 . 3 . 2 . . . . . 3 4 . Load Schematic 5 | . . . . . . . . . . . . . . . . . 1 . 1 . . . . . . . 2 1 . Build 11 | . . . . . . . . . . . 2 . . . . . 1 . 2 . 2 . . . . . 1 3 . Repair Station Hacks 4 | . . . . . . . . . . . 2 . . . . . . . 2 . . . . . . . . . . Scan Component 2 | . . . . . . . . . . . 1 . . . . . . . 1 . . . . . . . . . . Repair 2 | . . . . . . . . . . . 1 . . . . . . . 1 . . . . . . . . . . Recycling Unit Hacks 6 | . 2 . . . . . . . . . 4 . . . . . . . . . . . . . . . . . . Report Inventory 3 | . 1 . . . . . . . . . 2 . . . . . . . . . . . . . . . . . . Retrieve Matter 1 | . . . . . . . . . . . 1 . . . . . . . . . . . . . . . . . . Retrieve Components 2 | . 1 . . . . . . . . . 1 . . . . . . . . . . . . . . . . . . Scanalyzer 18 | . . . 2 . . . 7 . . . 4 . . . . . . . . . . . . . . . 5 . . Insert Component 10 | . . . 1 . . . 4 . . . 2 . . . . . . . . . . . . . . . 3 . . Analyze 8 | . . . 1 . . . 3 . . . 2 . . . . . . . . . . . . . . . 2 . . Garrison Access Hacks 15 | . . . . . 2 . 1 . 1 . 2 . . . 1 . 1 . 1 . 2 . . . . . 1 1 2 Unlock Access 5 | . . . . . 1 . 1 . 1 . . . . . 1 . . . 1 . . . . . . . . . . Seal Access 9 | . . . . . . . . . . . 2 . . . . . 1 . . . 2 . . . . . 1 1 2 Coupler Status 1 | . . . . . 1 . . . . . . . . . . . . . . . . . . . . . . . . Unauthorized Hacks 195 | . 11 . 15 . 2 . 10 . 2 . 12 24 12 . 8 . 12 . 8 . 23 . . . . 4 29 5 18 Terminals 81 | . 4 . 7 . 1 . 5 . 1 . 4 11 6 . 3 . 4 . 3 . 8 . . . . 2 13 2 7 Track 20 | . . . 1 . . . 1 . . . 1 3 2 . 1 . . . 1 . 2 . . . . . 5 1 2 Botnet 61 | . 4 . 6 . 1 . 4 . 1 . 3 8 4 . 2 . 4 . 2 . 6 . . . . 2 8 1 5 Fabricators . | . . . . . . . . . . . . . . . . . . . . . . . . . . . . . . Repair Stations . | . . . . . . . . . . . . . . . . . . . . . . . . . . . . . . Recycling Units . | . . . . . . . . . . . . . . . . . . . . . . . . . . . . . . Scanalyzers . | . . . . . . . . . . . . . . . . . . . . . . . . . . . . . . Garrison Access . | . . . . . . . . . . . . . . . . . . . . . . . . . . . . . . Data Cores Recovered 7 | . . . . . . . 3 . . . . 1 . . 1 . . . . . . . . . . . 2 . . Used 4 | . . . . . . . 1 . . . . 1 . . 1 . . . . . . . . . . . 1 . . Hacking Detections 100 | . 7 . 10 . 2 . 8 . 1 . 9 13 4 . 3 . 8 . 4 . 10 . . . 1 2 11 2 5 Full Trace Events 4 | . . . 1 . . . . . . . 1 . . . . . 1 . . . 1 . . . . . . . . Feedback Events . | . . . . . . . . . . . . . . . . . . . . . . . . . . . . . . Feedback Blocked . | . . . . . . . . . . . . . . . . . . . . . . . . . . . . . . Robot Schematics Acquired 1 | . . . . . . . 1 . . . . . . . . . . . . . . . . . . . . . . Robots Built 6 | . . . . . . . . . . . 4 . . . . . 2 . . . . . . . . . . . . Matter 1107 | . . . . . . . . . . . 504 . . . . . 252 . . . 351 . . . . . . . . Time 342 | . . . . . . . . . . . 88 . . . . . 67 . . . 187 . . . . . . . . Total Robot Build Rating 24 | . . . . . . . . . . . 16 . . . . . 8 . . . . . . . . . . . . Part Schematics Acquired 18 | . . . 3 . . . 3 . . . 2 . . . . . . . . . 1 . . 4 . 1 4 . . Parts Built 7 | . . . . . . . . . . . . . . . . . . . 2 . 1 . . . . . 1 3 . Matter 2120 | . . . . . . . . . . . . . . . . . . . 570 . 278 . . . . . 318 954 . Time 445 | . . . . . . . . . . . . . . . . . . . 152 . 69 . . . . . 56 168 . Total Part Build Rating 43 | . . . . . . . . . . . . . . . . . . . 10 . 9 . . . . . 6 18 . Parts Repaired 2 | . . . . . . . . . . . 1 . . . . . . . 1 . . . . . . . . . . Time 83 | . . . . . . . . . . . 33 . . . . . . . 50 . . . . . . . . . . Parts Recycled . | . . . . . . . . . . . . . . . . . . . . . . . . . . . . . . Recycled Matter . | . . . . . . . . . . . . . . . . . . . . . . . . . . . . . . Retrieved Matter . | . . . . . . . . . . . . . . . . . . . . . . . . . . . . . . Retrieved Components 3 | . 1 . . . . . . . . . 2 . . . . . . . . . . . . . . . . . . Parts Scanalyzed 9 | . . . 1 . . . 4 . . . 2 . . . . . . . . . . . . . . . 2 . . Part Schematics Acquired 8 | . . . 1 . . . 3 . . . 2 . . . . . . . . . . . . . . . 2 . . Parts Damaged 1 | . . . . . . . . . . . 1 . . . . . . . . . . . . . . . . . . Bothacking | -11 -10 -10 -9 -9 -8 -8 -7 -7 -7 -7 -6 -6 -6 -6 -6 -6 -5 -5 -5 -5 -4 -4 -4 -4 -3 -3 -3 -2 -1 ------------ Run | Scr Mat Min Mat Min Mat Gar Fac Gar Fac Gar Fac Ext Cet Arc Hub Gar Fac Was Fac Gar Fac Upp Upp Zhi Pro Res Tes Res Acc Used RIF Installer 5 | . . . . . . 1 . 1 . 1 . . . . . 1 . . . 1 . . . . . . . . . Robot Detection 1 | . . . . . . . . . . . . . . . . 1 . . . . . . . . . . . . . Patrol Navigation 1 | . . . . . . . . . . . . . . . . . . . . 1 . . . . . . . . . Structural Interface 1 | . . . . . . . . 1 . . . . . . . . . . . . . . . . . . . . . Autooverride 1 | . . . . . . . . . . 1 . . . . . . . . . . . . . . . . . . . Robots Hacked . | . . . . . . . . . . . . . . . . . . . . . . . . . . . . . . Non-combat . | . . . . . . . . . . . . . . . . . . . . . . . . . . . . . . Combat . | . . . . . . . . . . . . . . . . . . . . . . . . . . . . . . Robot Hacks Applied . | . . . . . . . . . . . . . . . . . . . . . . . . . . . . . . Relay Couplers Released 3 | . . . . . . . 1 . . . . . . . . 2 . . . . . . . . . . . . . Machine Destruction 2 | . . . . . . . . . . . . . . . . 2 . . . . . . . . . . . . . Programmers 1 | . . . . . . . 1 . . . . . . . . . . . . . . . . . . . . . . Attached 2 | . . . . . . . . . . . . . . . . 2 . . . . . . . . . . . . . Robots Rewired 15 | . . . . . . . . . . . . 14 . . . . . . 1 . . . . . . . . . . Allies Hacked . | . . . . . . . . . . . . . . . . . . . . . . . . . . . . . . Hacks Repelled . | . . . . . . . . . . . . . . . . . . . . . . . . . . . . . . Allies | -11 -10 -10 -9 -9 -8 -8 -7 -7 -7 -7 -6 -6 -6 -6 -6 -6 -5 -5 -5 -5 -4 -4 -4 -4 -3 -3 -3 -2 -1 -------- Run | Scr Mat Min Mat Min Mat Gar Fac Gar Fac Gar Fac Ext Cet Arc Hub Gar Fac Was Fac Gar Fac Upp Upp Zhi Pro Res Tes Res Acc Total Allies 42 | . . . . . . . . . . . 4 26 5 . . . 2 1 1 . . . . . . . . . 3 Largest Group 17 | . . . . . . . . . . . 4 17 6 6 5 5 5 1 1 . . . . . . . . . 3 Highest-Rated Group 620 | . . . . . . . . . . . 152 603 620 620 470 470 376 31 31 . . . . . . . . . 359 Highest-Rated Ally 156 | . . . . . . . . . . . 38 156 150 150 94 94 94 31 31 . . . . . . . . . 124 Total Orders 31 | . . . . . . . . . . . 4 . . . 5 7 7 . 1 . . . . . 7 . . . . STAY 2 | . . . . . . . . . . . . . . . . 2 . . . . . . . . . . . . . GOTO 15 | . . . . . . . . . . . 2 . . . 3 2 3 . . . . . . . 5 . . . . ROAM 2 | . . . . . . . . . . . 2 . . . . . . . . . . . . . . . . . . FOLLOW 8 | . . . . . . . . . . . . . . . 2 3 2 . . . . . . . 1 . . . . DROP 1 | . . . . . . . . . . . . . . . . . . . 1 . . . . . . . . . . EXPLORE 3 | . . . . . . . . . . . . . . . . . 2 . . . . . . . 1 . . . . Ally Attacks 388 | . . . . . . . . . . . . 230 22 13 23 51 26 18 2 . . . . . . . . . 3 Total Damage 10255 | . . . . . . . . . . . . 4974 791 487 782 1901 994 276 . . . . . . . . . . 50 Kills 69 | . . . . . . . . . . . . 37 5 1 7 10 9 . . . . . . . . . . . . Allies Corrupted 1 | . . . . . . . . . . . . . . . . . 1 . . . . . . . . . . . . Allies Melted 1 | . . . . . . . . . . . . 1 . . . . . . . . . . . . . . . . . Intel | -11 -10 -10 -9 -9 -8 -8 -7 -7 -7 -7 -6 -6 -6 -6 -6 -6 -5 -5 -5 -5 -4 -4 -4 -4 -3 -3 -3 -2 -1 ------- Run | Scr Mat Min Mat Min Mat Gar Fac Gar Fac Gar Fac Ext Cet Arc Hub Gar Fac Was Fac Gar Fac Upp Upp Zhi Pro Res Tes Res Acc Robot Analysis Total 12 | . . . 1 . . . . . . . . . . . . . 1 . 1 . 2 . . 4 . 2 1 . . Derelict Logs Recovered 4 | . . 1 . 1 . . . . . . . . . . . . . . . . . 1 1 . . . . . . Drone Launches 8 | . . . . . . . . . . . 2 . . . 2 . 2 . . . . . . . 2 . . . . Drone Recoveries . | . . . . . . . . . . . . . . . . . . . . . . . . . . . . . . Exploration | -11 -10 -10 -9 -9 -8 -8 -7 -7 -7 -7 -6 -6 -6 -6 -6 -6 -5 -5 -5 -5 -4 -4 -4 -4 -3 -3 -3 -2 -1 ------------- Run | Scr Mat Min Mat Min Mat Gar Fac Gar Fac Gar Fac Ext Cet Arc Hub Gar Fac Was Fac Gar Fac Upp Upp Zhi Pro Res Tes Res Acc Turns Passed 13595 | 96 707 389 1312 177 157 176 1076 185 127 329 1402 862 273 111 192 283 558 145 671 342 980 148 251 87 278 293 1088 713 187 Spaces Moved 18292 | 80 766 567 1892 312 201 248 1405 225 267 319 1551 811 231 181 217 298 1080 136 981 421 1414 315 349 203 442 416 1619 898 447 Core 21 | 15 . . . . . . . . . . . 5 . . . . . . . . 1 . . . . . . . . Treads . | . . . . . . . . . . . . . . . . . . . . . . . . . . . . . . Legs . | . . . . . . . . . . . . . . . . . . . . . . . . . . . . . . Wheels 284 | 65 219 . . . . . . . . . . . . . . . . . . . . . . . . . . . . Hover . | . . . . . . . . . . . . . . . . . . . . . . . . . . . . . . Flight 17987 | . 547 567 1892 312 201 248 1405 225 267 319 1551 806 231 181 217 298 1080 136 981 421 1413 315 349 203 442 416 1619 898 447 Fastest Speed 11 | 50 37 37 34 34 34 34 32 32 32 32 32 32 32 32 32 32 32 32 29 29 29 29 29 29 29 29 23 11 11 Average Speed 31 | 74 49 37 34 34 34 34 33 32 32 32 32 32 32 32 32 32 32 32 34 29 29 29 29 29 29 29 25 15 11 Slowest Speed 120 | 80 120 37 37 34 34 34 37 32 32 32 106 106 105 32 32 99 106 32 106 29 105 29 32 29 32 32 105 99 11 Overloaded Moves . | . . . . . . . . . . . . . . . . . . . . . . . . . . . . . . Propulsion Burnouts . | . . . . . . . . . . . . . . . . . . . . . . . . . . . . . . Robots Hopped 87 | . 2 1 4 2 . . 7 . 3 . 8 6 . 3 1 . 8 . 10 . 10 . . 1 . 1 7 10 3 Cave-ins Triggered . | . . . . . . . . . . . . . . . . . . . . . . . . . . . . . . Exploration Rate (%) 53 | 6 94 71 96 84 16 47 33 47 7 59 35 87 83 96 28 64 35 99 20 70 38 60 58 62 68 12 96 17 16 Regions Visited 29 Branch Regions 11 Pre-discovered Areas 3 | . . . . . . . . . . . . . . . . . . . . . . . . 3 . . . . . Known Exits Taken 19 | . . . 1 1 1 . 1 . 1 . 1 1 1 1 1 . . . 1 . 1 1 1 1 1 1 1 1 . Unknown Exits Taken 3 | 1 1 1 . . . . . . . . . . . . . . . . . . . . . . . . . . . Scrap Searched 10 | . . 1 . 1 . . . . . . . . . . . . . . . . . 2 1 . 5 . . . . Spaces Dug 27 | . . . . . . . . . . . 2 1 . . . . 2 . 5 . 2 . 3 . 1 . 1 . 10 Terrain Destroyed 944 | . 60 . 231 46 5 . 48 43 . . 84 2 . . 1 . 69 . 25 29 181 28 52 . 29 . 1 . 10 Melee 20 | . . . . . . . . . . . 2 1 . . . . 2 . . . . . 3 . 1 . 1 . 10 Projectile 42 | . . . 1 2 5 . . . . . . 1 . . 1 . 10 . 10 . 12 . . . . . . . . AOE 882 | . 60 . 230 44 . . 48 43 . . 82 . . . . . 57 . 15 29 169 28 49 . 28 . . . . Actions | -11 -10 -10 -9 -9 -8 -8 -7 -7 -7 -7 -6 -6 -6 -6 -6 -6 -5 -5 -5 -5 -4 -4 -4 -4 -3 -3 -3 -2 -1 --------- Run | Scr Mat Min Mat Min Mat Gar Fac Gar Fac Gar Fac Ext Cet Arc Hub Gar Fac Was Fac Gar Fac Upp Upp Zhi Pro Res Tes Res Acc Total 23638 | 96 956 694 2261 346 265 313 1823 304 302 447 2210 1250 374 217 301 439 1230 199 1261 567 1799 350 477 229 538 539 2097 1252 502 Wait 2253 | . 68 75 97 13 26 5 195 40 23 39 383 195 77 32 52 81 68 14 110 45 113 4 97 4 26 45 169 154 3 Move 18092 | 79 762 564 1883 307 200 246 1391 223 261 317 1534 799 230 174 214 296 1064 135 961 419 1393 314 348 200 441 413 1604 879 441 Hop 79 | . 1 1 4 2 . . 6 . 2 . 8 5 . 3 1 . 8 . 9 . 10 . . 1 . 1 7 8 2 Pick Up 83 | . 2 2 11 . . . 3 . 1 2 12 4 1 1 1 2 2 1 2 3 8 4 3 1 5 1 9 1 1 Fast Attach 429 | 8 15 6 24 . 4 1 26 . 2 2 46 3 5 1 . 12 23 7 46 4 52 . 2 9 9 19 70 33 . Attach 34 | . . 1 2 . . . 2 . . . 1 1 . . . . 1 . . 3 9 3 3 1 3 . 3 . 1 Detach 11 | . . . 1 . 1 . 3 . . . 1 . . . . . . 1 . . 1 . . 1 . . 2 . . Swap 95 | . 1 1 11 3 2 . 13 4 5 5 9 4 1 . . 1 3 . . 1 2 . 2 1 2 . 12 5 7 Drop 502 | 1 16 8 33 . 6 1 31 . 6 4 60 7 7 1 1 15 25 9 46 8 56 3 5 9 13 20 76 34 1 Fire 1097 | 8 68 26 148 17 11 14 90 19 2 49 79 61 23 5 16 23 24 22 23 35 86 11 10 . 26 20 75 86 20 Melee 42 | . . . . . . . . . . . 9 1 . . . . 2 . . . . . 3 . 1 . 8 . 18 Ram 1 | . . . . . . . . . . . . . . . . . . . 1 . . . . . . . . . . Kick . | . . . . . . . . . . . . . . . . . . . . . . . . . . . . . . Crush . | . . . . . . . . . . . . . . . . . . . . . . . . . . . . . . Escape Stasis 222 | . . . . . . 40 24 . . 4 11 60 . . . . . . 54 24 5 . . . . . . . . Rewire 59 | . . . . . . . . . . . . 57 . . . . . . 2 . . . . . . . . . . Trap . | . . . . . . . . . . . . . . . . . . . . . . . . . . . . . . Miscellaneous 639 | . 23 10 47 4 15 6 39 18 . 25 57 53 30 . 16 9 10 10 7 25 64 11 4 2 12 20 62 52 8 Route ------- -11/Scrapyard -10/Materials (discovered 4 exits: *Mat x3 / [*Min]) -10/Mines (discovered 2 exits: *Mat x2) -9/Materials (discovered 5 exits: *Mat x3 / *Min x2) -9/Mines -8/Materials (discovered 2 exits: Fac / Gar) -8/Garrison (discovered 2 exits: *Fac x2) -7/Factory (discovered 2 exits: *Fac / Gar) -7/Garrison -7/Factory -7/Garrison (discovered 2 exits: *Fac x2) -6/Factory (discovered 5 exits: *Fac / Low x2 / *Ext x2) -6/Extension (discovered 3 exits: *Fac x2 / *Cet) -6/Cetus (discovered 2 exits: *Fac / *Arc) -6/Archives (discovered 3 exits: *Fac / *Hub x2) -6/Hub_04(d) (discovered 2 exits: Fac / Gar) -6/Garrison -5/Factory (discovered 2 exits: *Fac x2) -5/Waste -5/Factory (discovered 2 exits: *Upp / Gar) -5/Garrison (discovered 2 exits: *Fac x2) -4/Factory (discovered 3 exits: *Res x2 / *Upp) -4/Upper Caves -4/Upper Caves (discovered 2 exits: Res / *Zhi) -4/Zhirov -3/Proximity Caves -3/Research (discovered 2 exits: Arm / *Tes) -3/Testing -2/Research -1/Access (discovered 2 exits: *Sur / Com) To Epsilon Eridani History --------- Turn | Location | Event 2 | -11/Scrapyard | Met Revision 17 10 | -11/Scrapyard | Upgraded with Propulsion slot (x1) 10 | -11/Scrapyard | Upgraded with Utility slot (x1) 10 | -11/Scrapyard | Upgraded with Weapon slot (x1) 52 | -11/Scrapyard | Discovered new exit (range 8) 97 | -11/Scrapyard | Entered Materials 234 | -10/Materials | Discovered new exit (range 16) 310 | -10/Materials | Build established: Mutant 328 | -10/Materials | Discovered new exit (range 13) 458 | -10/Materials | Discovered new exit (range 10) 632 | -10/Materials | Reached level 2 632 | -10/Materials | Upgraded with Utility slot (x1) 727 | -10/Materials | Discovered new exit (range 16) 804 | -10/Materials | Entered Mines 882 | -10/Mines | Build established: Scavenger-Mutant 918 | -10/Mines | Reached level 3 930 | -10/Mines | Upgraded with Propulsion slot (x1) 971 | -10/Mines | Discovered new exit (range 8) 995 | -10/Mines | Learned Materials stockpile data 1066 | -10/Mines | Discovered new exit (range 9) 1066 | -10/Mines | Joined a pair of Derelicts in attacking an 0b10 outpost 1193 | -10/Mines | Entered Materials 1195 | -9/Materials | Reached level 4 1389 | -9/Materials | Reached level 5 1417 | -9/Materials | Discovered new exit (range 5) 1592 | -9/Materials | Discovered new exit (range 10) 1704 | -9/Materials | Reached level 6 1707 | -9/Materials | Upgraded with Utility slot (x1) 1721 | -9/Materials | Discovered new exit (range 18) 1845 | -9/Materials | Identified exit to Materials 1873 | -9/Materials | Discovered new exit (range 14) 1907 | -9/Materials | Identified exit to Mines 1993 | -9/Materials | Build established: Scavenger-Scout 2127 | -9/Materials | Reached level 7 2223 | -9/Materials | Upgraded with Weapon slot (x1) 2438 | -9/Materials | Discovered exit to Mines (range 6) 2500 | -9/Materials | Reached level 8 2505 | -9/Materials | Entered Mines 2587 | -9/Mines | Discovered exit to Materials (range 12) 2589 | -9/Mines | Assembled infested the area 2590 | -9/Mines | Destroyed 7 combat bots 2664 | -9/Mines | Learned 4 Materials zone layouts 2682 | -9/Mines | Entered Materials 2683 | -8/Materials | Identified exit to Factory 2684 | -8/Materials | Reached level 9 2690 | -8/Materials | Identified exit to Garrison 2764 | -8/Materials | Reached level 10 2787 | -8/Materials | Central database locked down 2807 | -8/Materials | Garrison activated, responded to threat 2839 | -8/Materials | Entered Garrison 2846 | -8/Garrison | Triggered checkpoint 2882 | -8/Garrison | Triggered checkpoint 2889 | -8/Garrison | Triggered checkpoint 2929 | -8/Garrison | Discovered exit to Factory (range 8) 2953 | -8/Garrison | Triggered checkpoint 2965 | -8/Garrison | Reached level 11 2983 | -8/Garrison | Build established: Hacker-Scout 2989 | -8/Garrison | Upgraded with Utility slot (x1) 3007 | -8/Garrison | Discovered exit to Factory (range 12) 3012 | -8/Garrison | Installed Relay Interface Framework 3015 | -8/Garrison | Entered Factory 3017 | -7/Factory | Reached level 12 3287 | -7/Factory | Reached level 13 3304 | -7/Factory | Upgraded with Utility slot (x1) 3415 | -7/Factory | First assault squad dispatched 3530 | -7/Factory | Reached level 14 3674 | -7/Factory | Core integrity fell below 50% 3995 | -7/Factory | Discovered new exit (range 14) 3999 | -7/Factory | Identified exit to Factory 4060 | -7/Factory | Identified exit to Garrison 4076 | -7/Factory | Reached level 15 4091 | -7/Factory | Entered Garrison 4107 | -7/Garrison | Triggered checkpoint 4126 | -7/Garrison | Triggered checkpoint 4221 | -7/Garrison | Triggered checkpoint 4227 | -7/Garrison | Destroyed 7 combat bots 4261 | -7/Garrison | Discovered new exit (range 11) 4264 | -7/Garrison | Identified exit to Factory 4266 | -7/Garrison | Expanded RIF knowledge: Structural Interface 4276 | -7/Garrison | Entered Factory 4402 | -7/Factory | Identified exit to Garrison 4403 | -7/Factory | Entered Garrison 4416 | -7/Garrison | Triggered checkpoint 4443 | -7/Garrison | Reached level 16 4459 | -7/Garrison | Triggered checkpoint 4515 | -7/Garrison | Upgraded with Weapon slot (x1) 4593 | -7/Garrison | Discovered exit to Factory (range 9) 4610 | -7/Garrison | Triggered checkpoint 4644 | -7/Garrison | Triggered checkpoint 4722 | -7/Garrison | Discovered exit to Factory (range 11) 4728 | -7/Garrison | Expanded RIF knowledge: Autooverride 4732 | -7/Garrison | Entered Factory 4734 | -6/Factory | Reached level 17 4838 | -6/Factory | Discovered new exit (range 10) 4841 | -6/Factory | Identified exit to Extension 4983 | -6/Factory | Found Launcher Loader 5117 | -6/Factory | Spotted B-75 Beast 5186 | -6/Factory | Reached level 18 5186 | -6/Factory | Identified exit to Lower Caves 5414 | -6/Factory | Repaired Broken Biomechanical Wings 5432 | -6/Factory | First assault squad dispatched 5627 | -6/Factory | Reached level 19 5822 | -6/Factory | Discovered new exit (range 13) 5833 | -6/Factory | Identified exit to Factory 5858 | -6/Factory | Fabricated X-62 Marksman? 5917 | -6/Factory | Fabricated X-62 Marksman (x2) 6126 | -6/Factory | Local fabrication network quarantined 6134 | -6/Factory | Entered Extension 6134 | -6/Extension | Accompanied by 4 allies 6142 | -6/Extension | Disrupted transfer network 6177 | -6/Extension | Rescued a captive Derelict 6198 | -6/Extension | Rescued a captive Derelict 6199 | -6/Extension | Rescued a captive Derelict 6302 | -6/Extension | Rescued a captive Derelict 6303 | -6/Extension | Rescued a captive Derelict 6312 | -6/Extension | Spotted B-75 Beast 6454 | -6/Extension | Reached level 20 6484 | -6/Extension | First assault squad dispatched 6528 | -6/Extension | Destroyed B-75 Beast 6532 | -6/Extension | Spotted B-75 Beast 6538 | -6/Extension | Destroyed B-75 Beast 6543 | -6/Extension | Discovered exit to Factory (range 9) 6613 | -6/Extension | Destroyed 7 combat bots 6689 | -6/Extension | Rescued a captive Derelict 6693 | -6/Extension | Rescued a captive Derelict 6697 | -6/Extension | Rescued a captive Derelict 6710 | -6/Extension | Rescued a captive Derelict 6712 | -6/Extension | Rescued a captive Derelict 6815 | -6/Extension | Rescued A7 6819 | -6/Extension | Rescued a captive Derelict 6822 | -6/Extension | Rescued a captive Derelict 6872 | -6/Extension | Reached level 21 6936 | -6/Extension | Discovered new exit (range 24) 6961 | -6/Extension | Destroyed 12 combat bots 6969 | -6/Extension | Discovered exit to Factory (range 10) 6993 | -6/Extension | Identified exit to Cetus 6996 | -6/Extension | Entered Cetus 6996 | -6/Cetus | Accompanied by 1 ally 7001 | -6/Cetus | Acquired a Cetus Manufacturing Module code from A7 7002 | -6/Cetus | Spotted Cetus Guard 7002 | -6/Cetus | Spotted Cetus Guard 7008 | -6/Cetus | Spotted Cetus Guard 7010 | -6/Cetus | Spotted Cetus Guard 7017 | -6/Cetus | Destroyed Cetus Guard 7020 | -6/Cetus | Destroyed Cetus Guard 7027 | -6/Cetus | Destroyed Cetus Guard 7033 | -6/Cetus | Allies destroyed Cetus Guard 7085 | -6/Cetus | Destroyed 8 combat bots 7092 | -6/Cetus | Started Cetus Manufacturing Module 7096 | -6/Cetus | Escorted A7 to Cetus Mainframe 7101 | -6/Cetus | Discovered new exit (range 24) 7115 | -6/Cetus | Identified exit to Archives 7117 | -6/Cetus | Manufactured an Enhanced Grunt 7123 | -6/Cetus | Spotted Cetus Guard 7123 | -6/Cetus | Spotted Cetus Guard 7128 | -6/Cetus | Spotted Cetus Guard 7132 | -6/Cetus | Destroyed Cetus Guard 7133 | -6/Cetus | Spotted Cetus Guard 7138 | -6/Cetus | Discovered exit to Factory (range 22) 7142 | -6/Cetus | Manufactured an Enhanced Grunt 7143 | -6/Cetus | Destroyed Cetus Guard 7150 | -6/Cetus | Destroyed Cetus Guard 7155 | -6/Cetus | Allies destroyed Cetus Guard 7161 | -6/Cetus | Met Revision 17 7167 | -6/Cetus | Manufactured an Enhanced Grunt 7192 | -6/Cetus | Manufactured an Enhanced Grunt 7217 | -6/Cetus | Manufactured an Enhanced Grunt 7269 | -6/Cetus | Entered Archives 7269 | -6/Archives | Accompanied by 6 allies 7274 | -6/Archives | Received a hacking code to weaken MAIN.C 7296 | -6/Archives | Discovered exit to Factory (range 15) 7301 | -6/Archives | Discovered new exit (range 15) 7306 | -6/Archives | Unable to access archive contents 7307 | -6/Archives | Discovered new exit (range 17) 7315 | -6/Archives | Identified exit to Hub_04(d) 7335 | -6/Archives | Unable to access archive contents 7338 | -6/Archives | Unable to access archive contents 7341 | -6/Archives | Unable to access archive contents 7380 | -6/Archives | Entered Hub_04(d) 7380 | -6/Hub_04(d) | Accompanied by 5 allies 7382 | -6/Hub_04(d) | Reached level 22 7428 | -6/Hub_04(d) | Spotted B-75 Beast 7436 | -6/Hub_04(d) | Destroyed B-75 Beast 7450 | -6/Hub_04(d) | Disrupted transfer network 7472 | -6/Hub_04(d) | Discovered exit to Factory (range 19) 7490 | -6/Hub_04(d) | Identified exit to Garrison 7510 | -6/Hub_04(d) | Garrison activated, responded to threat 7572 | -6/Hub_04(d) | Entered Garrison 7572 | -6/Garrison | Accompanied by 7 allies 7574 | -6/Garrison | Expanded RIF knowledge: Robot Detection 7610 | -6/Garrison | Triggered checkpoint 7642 | -6/Garrison | Garrison Relay disabled 7736 | -6/Garrison | Triggered checkpoint 7752 | -6/Garrison | Triggered checkpoint 7753 | -6/Garrison | Triggered checkpoint 7768 | -6/Garrison | Triggered checkpoint 7785 | -6/Garrison | Discovered exit to Factory (range 15) 7855 | -6/Garrison | Entered Factory 7855 | -5/Factory | Accompanied by 6 allies 7857 | -5/Factory | Reached level 23 7857 | -5/Factory | Upgraded with Utility slot (x1) 7958 | -5/Factory | Discovered new exit (range 6) 7983 | -5/Factory | Identified exit to Factory 8003 | -5/Factory | Found Prototype Device 8003 | -5/Factory | Identified Exp. Thermal Shield 8053 | -5/Factory | Fabricated Y-54 Guardian? 8155 | -5/Factory | First assault squad dispatched 8186 | -5/Factory | Discovered exit to Factory (range 15) 8413 | -5/Factory | Manually triggered Chute Trap 8413 | -5/Factory | Sucked down chute 8413 | -5/Factory | Entered Waste 8414 | -5/Waste | Met a frightened Derelict 8439 | -5/Waste | Spotted C-40 Crusher 8443 | -5/Waste | Spotted C-40 Crusher 8444 | -5/Waste | Spotted C-40 Crusher 8450 | -5/Waste | Destroyed C-40 Crusher 8460 | -5/Waste | Destroyed C-40 Crusher 8468 | -5/Waste | Destroyed C-40 Crusher 8471 | -5/Waste | Spotted C-40 Crusher 8487 | -5/Waste | Destroyed C-40 Crusher 8488 | -5/Waste | Spotted C-40 Crusher 8491 | -5/Waste | Destroyed C-40 Crusher 8505 | -5/Waste | Spotted C-40 Crusher 8517 | -5/Waste | Destroyed C-40 Crusher 8520 | -5/Waste | Discovered new exit (range 24) 8544 | -5/Waste | Identified exit to Factory 8558 | -5/Waste | Entered Factory 8558 | -5/Factory | Accompanied by 1 ally 8740 | -5/Factory | Reached level 24 8847 | -5/Factory | Discovered new exit (range 23) 8853 | -5/Factory | Identified exit to Upper Caves 8923 | -5/Factory | Upgraded with Propulsion slot (x1) 8979 | -5/Factory | Repaired Broken Biomechanical Wings 9063 | -5/Factory | Fabricated Biomechanical Wings (x1) 9132 | -5/Factory | Garrison activated, responded to threat 9141 | -5/Factory | Fabricated Biomechanical Wings? 9157 | -5/Factory | Local fabrication network quarantined 9211 | -5/Factory | Identified exit to Garrison 9229 | -5/Factory | Entered Garrison 9236 | -5/Garrison | Triggered checkpoint 9276 | -5/Garrison | Spotted B-75 Beast 9281 | -5/Garrison | Triggered checkpoint 9311 | -5/Garrison | Destroyed B-75 Beast 9451 | -5/Garrison | Discovered exit to Factory (range 18) 9473 | -5/Garrison | Destroyed 13 combat bots 9520 | -5/Garrison | Triggered checkpoint 9524 | -5/Garrison | Triggered checkpoint 9563 | -5/Garrison | Discovered exit to Factory (range 17) 9570 | -5/Garrison | Expanded RIF knowledge: Patrol Navigation 9571 | -5/Garrison | Entered Factory 9617 | -4/Factory | Reached level 25 9745 | -4/Factory | Discovered new exit (range 11) 9746 | -4/Factory | Garrison activated, responded to threat 9759 | -4/Factory | Identified exit to Research 9821 | -4/Factory | First assault squad dispatched 9905 | -4/Factory | Spotted B-86 Titan 10010 | -4/Factory | Destroyed B-86 Titan 10081 | -4/Factory | Discovered exit to Research (range 18) 10128 | -4/Factory | Reached level 26 10152 | -4/Factory | Fabricated Enh. Nova Cannon? 10306 | -4/Factory | Spotted B-86 Titan 10328 | -4/Factory | Destroyed B-86 Titan 10406 | -4/Factory | Found Prototype Slashing Weapon 10406 | -4/Factory | Identified Centrium Greatsword 10463 | -4/Factory | Discovered new exit (range 20) 10505 | -4/Factory | Destroyed 7 combat bots 10549 | -4/Factory | Identified exit to Upper Caves 10551 | -4/Factory | Entered Upper Caves 10626 | -4/Upper Caves | Destroyed 14 combat bots 10682 | -4/Upper Caves | Encountered a Warlord checkpoint 10687 | -4/Upper Caves | Learned location of 1 exit from Research 10693 | -4/Upper Caves | Discovered new exit (range 17) 10698 | -4/Upper Caves | Identified exit to Upper Caves 10699 | -4/Upper Caves | Entered another Upper Caves area 10707 | -4/Upper Caves | Learned location of 1 exit from Proximity Caves 10752 | -4/Upper Caves | Discovered exit to Research (range 21) 10765 | -4/Upper Caves | Encountered a Warlord checkpoint 10920 | -4/Upper Caves | Spotted B-86 Titan 10934 | -4/Upper Caves | Destroyed B-86 Titan 10947 | -4/Upper Caves | Discovered new exit (range 8) 10948 | -4/Upper Caves | Identified exit to Zhirov 10950 | -4/Upper Caves | Entered Zhirov 10950 | -4/Zhirov | Discovered new exit (range 3) 10956 | -4/Zhirov | Met Zhirov 10962 | -4/Zhirov | Learned location of Quarantine (-2) 10962 | -4/Zhirov | Learned location of Testing (-3) 10962 | -4/Zhirov | Learned location of Command (-1) 10968 | -4/Zhirov | Zhirov requested help retrieving the SGEMP Prototype 10982 | -4/Zhirov | Found Alien Artifact 10982 | -4/Zhirov | Identified Integrated Reactor 10982 | -4/Zhirov | Installed Integrated Reactor, increased core energy generation (+2%) 11012 | -4/Zhirov | Found Alien Artifact 11037 | -4/Zhirov | Identified exit to Proximity Caves 11037 | -4/Zhirov | Entered Proximity Caves 11039 | -3/Proximity Caves | Reached level 27 11131 | -3/Proximity Caves | Attracted the attention of an 0b10 base 11198 | -3/Proximity Caves | Destroyed 7 combat bots 11237 | -3/Proximity Caves | Reached level 28 11284 | -3/Proximity Caves | Destroyed 9 combat bots 11315 | -3/Proximity Caves | Entered Research 11316 | -3/Research | Identified exit to Armory 11451 | -3/Research | Discovered new exit (range 22) 11515 | -3/Research | Revision forces began assault on 0b10 11522 | -3/Research | Spotted B-86 Titan 11538 | -3/Research | Destroyed B-86 Titan 11543 | -3/Research | Identified exit to Testing 11567 | -3/Research | Reached level 29 11567 | -3/Research | Met up with Revision 17++ 11608 | -3/Research | Entered Testing 11635 | -3/Testing | Found Prototype Hackware 11635 | -3/Testing | Identified System Mapper 11690 | -3/Testing | Protovariant out of control (PG-K9XN7GGYTP) 11690 | -3/Testing | Unleashed a protovariant (PG-K9XN7GGYTP) 11741 | -3/Testing | Destroyed 8 combat bots 11819 | -3/Testing | Identified Transdimensional Reconstructor 11831 | -3/Testing | Spotted Investigator 11832 | -3/Testing | Scanned by Researcher 11837 | -3/Testing | Destroyed Investigator 11953 | -3/Testing | Fabricated Hvy. Gatling Laser (x1) 11967 | -3/Testing | Found Prototype Launcher 11967 | -3/Testing | Identified Containment Facilitator 12043 | -3/Testing | Found Prototype Launcher 12043 | -3/Testing | Identified Z-bomb Delivery System 12061 | -3/Testing | Found Prototype Energy Gun 12061 | -3/Testing | Identified Tachyon Dispersion Ray 12185 | -3/Testing | Found Prototype Device 12185 | -3/Testing | Identified Exp. Focal Shield 12253 | -3/Testing | Found Prototype Protection 12253 | -3/Testing | Identified Hvy. Regenerative Plating 12256 | -3/Testing | Found Prototype Protection 12256 | -3/Testing | Identified Med. Regenerative Plating 12258 | -3/Testing | Found Prototype Protection 12258 | -3/Testing | Identified SHELL Armor 12281 | -3/Testing | Found Prototype Processor 12281 | -3/Testing | Identified Spectral Analyzer 12300 | -3/Testing | Spotted Striker 12300 | -3/Testing | Spotted Striker 12323 | -3/Testing | Spotted Alpha 7 12325 | -3/Testing | Destroyed Striker 12332 | -3/Testing | Destroyed Alpha 7 12338 | -3/Testing | Destroyed Striker 12363 | -3/Testing | Stole the SGEMP Prototype 12363 | -3/Testing | Reached level 30 12543 | -3/Testing | Discovered new exit (range 22) 12568 | -3/Testing | Found Prototype Energy Cannon 12568 | -3/Testing | Identified Imp. Potential Cannon 12570 | -3/Testing | Found Prototype Energy Cannon 12570 | -3/Testing | Identified Potential Cannon 12655 | -3/Testing | Found Portable AFG 12672 | -3/Testing | Identified exit to Research 12696 | -3/Testing | Entered Research 12717 | -2/Research | Found Antimissile System 12786 | -2/Research | Reached level 31 12832 | -2/Research | Destroyed 7 combat bots 12941 | -2/Research | Garrison activated, responded to threat 12946 | -2/Research | First assault squad dispatched 12989 | -2/Research | Spotted B-90 Cyclops 13012 | -2/Research | Destroyed B-90 Cyclops 13071 | -2/Research | Fabricated Hvy. Gatling Laser? 13207 | -2/Research | Destroyed 15 combat bots 13255 | -2/Research | Fabricated Hvy. Gatling Laser? 13298 | -2/Research | Local fabrication network quarantined 13305 | -2/Research | Reached level 32 13321 | -2/Research | Fabricated Hvy. Gatling Laser? 13373 | -2/Research | Destroyed 7 combat bots 13399 | -2/Research | Discovered new exit (range 16) 13409 | -2/Research | Identified exit to Access 13409 | -2/Research | Entered Access 13410 | -1/Access | Loaded intel: 104 machine locations 13410 | -1/Access | Loaded intel: 99 trap records 13410 | -1/Access | Identified exit to Surface 13410 | -1/Access | Discovered exit to Surface (range 143) 13410 | -1/Access | Identified exit to Command 13410 | -1/Access | Discovered exit to Command (range 210) 13410 | -1/Access | Delivered the SGEMP Prototype to Zhirov 13410 | -1/Access | Zhirov transferred Access data 13411 | -1/Access | Reached level 33 13440 | -1/Access | Garrison activated, responded to threat 13444 | -1/Access | Zhirov warped through subspace 13534 | -1/Access | Spotted B-99 Colossus 13537 | -1/Access | Spotted B-99 Colossus 13542 | -1/Access | Destroyed B-99 Colossus 13568 | -1/Access | Destroyed B-99 Colossus 13596 | *** | Escaped! Last Messages --------------- 13576_ R-10 Processor collects Terrain Scan Processor. 13578_ K-01 Serf collects debris. 13579_ R-10 Processor collects Structural Scanner. 13582_ K-01 Serf collects debris. 13587_ U-05 Engineer builds a Wall. 13589_ K-01 Serf collects debris. 13592_ U-05 Engineer builds a Wall. 13592_ Main Access Shell breached. 13595_ K-01 Serf collects debris. [Achievement: 5k Club] [Achievement: 10k Club] [Achievement: 20k Club] [Achievement: 30k Club] [Achievement: 40k Club] [Achievement: 50k Club] [Achievement: This Is Interesting...] [Achievement: Torch] [Achievement: Epsilon Run] [Achievement: Victory By Combat] [Achievement: Achiever] Map ----- +----------------------------------------------------+ | ### """"""# + ^ | | ### """"""# # ^^ | | ### "" # # ^ | | ### "" # ##### #####/####### | | ### # ##### ##### " | | ### # ##### ##### """ | | ################### ##### ##### """ | | ##### ########## ##### ##### " | | ########## ##### ##### | | ########## ##### ##### | | ######+### ########## ##### ##### | | # ## ########### ##### + | | # ## ########### ########### | | #"" ## ##################################### | | #"" ## w##################################### | | #"" ## ##################################### | | #T ## ############################# | | #"" ## ############################# | | #"" ##u ############################# | | #"" ## #######"##################### | | # * ## """T"""" """" #R####### | | # ## """ """" """" % # ####### | | # ##k " """""" """" # ####### | | # " ## " " " """" ## | | # """ ## " " "" " """" ## | | # """ ##R " " @" " """" k ## | | # " ##k " " """" u% # | | # ##k " """""" kk % ###% # | | # ## " """" "## # | | "########"# " """" ### # | | ########### #######"####################### # | | ########### ############################### # | | ###########k ############################### # | | ########### # """T""" ############### # | | ###########k # ############### # | | ###########k + h h ############### # | | ########### # " " ############### # | | ########### # """ """ # # | | ########### # """ """ # # | | ########### k# " " # # | | ########### # # Ak # | | ###########R # # ######+### # | | ########### ################# n ## # # | | ########### ################# ## # ## | | ##### k uk^ ## # | | ##### ^ ## # | | ##### ^^ ## # | | ##### ^^ ## %" # | | ##### ################# ## " ####### | | ##### ################# ## ### | +----------------------------------------------------+ Best States ------------- Heat Dissipation 115 Energy Generation 64 Energy Capacity 1750 Matter Stores 500 Matter Capacity 650 Sight Range 20 Robot Scan Range 20 Terrain Scan Range 24 Terrain Scan Density 510 ECM Strength 3 Base Temperature (-) 200 Heat Shielding 100 Armor Coverage 900 Resistance: KI 25 Resistance: TH 20 Resistance: EX 50 Weapon Cycling 20 Evasion (%) 79 Targeting Accuracy 16 Target Analysis 6 Kinecelleration 40 Offensive Hacking 30 Defensive Hacking 20 Item Schematics ----------------- VTOL Module | -9/Materials | Scanalyzed Imp. Signal Interpreter | -9/Materials | Hacked Imp. Targeting Computer | -9/Materials | Hacked Gatling Laser | -7/Factory | Scanalyzed System Backup Module | -7/Factory | Scanalyzed Beam Rifle | -7/Factory | Scanalyzed Biomechanical Wings | -6/Factory | Scanalyzed Imp. System Backup Module | -6/Factory | Scanalyzed Enh. Quantum Rifle | -4/Factory | Hacked Assault Drone Bay | -4/Zhirov | Free Exp. Heat Sink | -4/Zhirov | Free Exp. Optical Array | -4/Zhirov | Free Imp. Arc Thrower | -4/Zhirov | Free Adv. Weapon Cycler | -3/Research | Hacked Lgt. Regenerative Plating | -3/Testing | Hacked Hvy. Gatling Laser | -3/Testing | Scanalyzed Smartbomb Launcher | -3/Testing | Scanalyzed Adv. Reaction Control System | -3/Testing | Hacked Robot Schematics ------------------ Y-54 Guardian | -7/Factory | Hacked Fabricated ------------ X-62 Marksman | x2 | -6/Factory | Preloaded X-62 Marksman | x2 | -6/Factory | Preloaded Y-54 Guardian | x2 | -5/Factory Biomechanical Wings | x1 | -5/Factory Biomechanical Wings | x1 | -5/Factory Enh. Nova Cannon | x1 | -4/Factory | Preloaded Hvy. Gatling Laser | x1 | -3/Testing Hvy. Gatling Laser | x1 | -2/Research Hvy. Gatling Laser | x1 | -2/Research Hvy. Gatling Laser | x1 | -2/Research Alien Tech Used ----------------- Integrated Reactor Achievements -------------- 10k Club 20k Club 30k Club 40k Club 50k Club 5k Club Achiever Alien Tech Armchair Analyst Can't Catch Me Can't Touch This Collateral Damage Denied? Dodgeball, But With Guns Dramatic Entrance Dynamic Key Epsilon Run Giant Slayer GoHome() Knowing Is Half The Battle Main Advantage Ooh, Shiny! Preemptive Strike Prison Break Project G-00 Prolific Hacker Pyromaniac Rampage Revising The Future Revolutionary Research Safety First Special Delivery The Science Guy This Is Interesting... Torch Victory By Combat Wheee! root@ Challenges ------------ None RPGLIKE | -11 -10 -10 -9 -9 -8 -8 -7 -7 -7 -7 -6 -6 -6 -6 -6 -6 -5 -5 -5 -5 -4 -4 -4 -4 -3 -3 -3 -2 -1 --------- Run | Scr Mat Min Mat Min Mat Gar Fac Gar Fac Gar Fac Ext Cet Arc Hub Gar Fac Was Fac Gar Fac Upp Upp Zhi Pro Res Tes Res Acc Levels Raised 32 | . 1 1 5 . 2 1 4 . . 1 3 2 . . 1 . 1 . 1 . 2 . . . 2 1 1 2 1 XP Earned 52449 | 3100 2010 1075 7362 1390 2080 1243 5859 1120 115 928 4287 3138 488 223 502 682 1812 46 182 582 2833 467 262 152 1682 1460 1757 2963 2649 XP Spent 50210 | 1500 2980 1500 7515 . 1500 2905 4260 . 1820 1310 4595 1610 . 1250 . . 3100 . 1600 . 2850 . . . 1500 3085 . 3030 2300 Upgrades 114 | 3 14 4 24 . 3 9 10 . 6 2 11 4 . 1 . . 3 . 2 . 5 . . . 1 6 . 4 2 Propulsion Slot 3 | 1 . 1 . . . . . . . . . . . . . . . . 1 . . . . . . . . . . Utility Slot 6 | 1 1 . 1 . . 1 1 . . . . . . . . . 1 . . . . . . . . . . . . Weapon Slot 3 | 1 . . 1 . . . . . . 1 . . . . . . . . . . . . . . . . . . . Core Integrity 12 | . 2 . 4 . . 1 1 . 2 . . 2 . . . . . . . . . . . . . . . . . Heat Dissipation 15 | . 2 2 3 . . . 1 . . 1 4 . . . . . . . . . . . . . . 1 . 1 . Energy Generation 5 | . . . 1 . . . . . . . 1 . . . . . 1 . . . 1 . . . . . . 1 . Energy Storage 8 | . . . . . . . 2 . . . 2 . . . . . 1 . . . 1 . . . . 2 . . . Matter Storage 2 | . . . . . . . 2 . . . . . . . . . . . . . . . . . . . . . . Mass Support 6 | . 2 . 2 . . . . . . . . . . . . . . . 1 . . . . . . . . 1 . Inventory Capacity 6 | . 2 . 1 . . . 1 . . . . . . 1 . . . . . . . . . . 1 . . . . Sight Range 4 | . 1 . 1 . . . . . . . . . . . . . . . . . 2 . . . . . . . . Sensor Range 10 | . 1 . 2 . . 3 2 . . . 1 . . . . . . . . . 1 . . . . . . . . Terrain Scan Density 5 | . . . 1 . . 1 . . 2 . 1 . . . . . . . . . . . . . . . . . . Ranged Accuracy 5 | . 1 1 2 . . . . . . . . . . . . . . . . . . . . . . . . 1 . Hack Attack % 6 | . 1 . 1 . . . . . 2 . 1 . . . . . . . . . . . . . . . . . 1 Hack Defense % 4 | . 1 . 1 . . . . . . . . 1 . . . . . . . . . . . . . . . . 1 KI Resistance % 4 | . . . 1 . . 1 . . . . . 1 . . . . . . . . . . . . . 1 . . . TH Resistance % 4 | . . . 1 . . 1 . . . . . . . . . . . . . . . . . . . 2 . . . EX Resistance % 2 | . . . 1 . . 1 . . . . . . . . . . . . . . . . . . . . . . . TH Damage % 4 | . . . . . 3 . . . . . 1 . . . . . . . . . . . . . . . . . . Protomatter Created 8047 | . 220 . 748 86 52 47 363 142 . 262 709 802 300 77 90 234 315 198 48 416 532 193 47 . 502 185 722 707 50 Integrity Restored 12476 | . 476 195 767 62 323 141 873 384 . 459 1105 1001 655 . 279 99 138 201 140 439 1352 231 81 4 215 389 1175 1142 150 Core 9760 | . 378 147 617 56 289 141 873 338 . 284 861 757 436 . 230 83 110 95 133 321 1099 121 71 . 174 354 760 882 150 Parts 2716 | . 98 48 150 6 34 . . 46 . 175 244 244 219 . 49 16 28 106 7 118 253 110 10 4 41 35 415 260 . Protomatter Decayed 4921 | . 58 1 282 65 . . 48 4 . 15 378 1551 150 . 38 157 416 184 . 222 111 36 . . 209 300 396 300 . Game ------ Seed SegregatorDerelictLoader Manual? 0 Play Time 09:17:42 Cumulative 27.2 hours Start 2019.12.17 @ 12:38:44 End 2019.12.23 @ 22:00:04 Sessions 5 Manual Loads 0 Difficulty Rogue Special Mode Winter2019/RPGLIKE Game No. 3 Rogue 3 Adventurer 0 Explorer 0 Win Type 0 Total 1 Types 1/0/0/0/0/0/0 Lore% 26 Gallery% 47 Achievement% 39 Wizard Run 0 Options --------- ASCII 0 Keyboard 0 Movement Numpad Keybinds 1 Fullscreen 1 Font 18/SmallcapsGlow Map View 76x50 Tactical HUD 1 Map Filters NONE Filters NONE Steam 1 RUN: 4de52cc3-34ee-4274-9943-647103183090